[Event "African Games Rapid Open 2019"]
[Site "Casablanca"]
[Date "2019.08.26"]
[Round "4.15"]
[White "Kouya, Tyeoulou Bernardin F"]
[Black "Beukes, Dante M"]
[Result "1-0"]
[ECO "A48"]
[WhiteElo "1770"]
[BlackElo "2130"]
[Annotator "NA"]
[PlyCount "121"]
[EventDate "2019.08.26"]
[EventType "team-tourn"]
[EventCountry "MAR"]
[SourceTitle "playchess.com"]
[Source "ChessBase"]
[SourceQuality "1"]
[TimeControl "900+10"]

1. d4 {[%emt 0:00:00]} Nf6 {[%emt 0:00:00]} 2. Nf3 {[%emt 0:00:00]} g6 {[%emt 0:00:01]} 3. Bg5 {[%emt 0:00:00]} Bg7 {[%emt 0:00:02]} 4. Nbd2 {[%emt 0:00:03]} d5 {[%emt 0:00:02]} 5. e3 {[%emt 0:00:03]} O-O {[%emt 0:00:04]} 6. Bd3 {[%emt 0:00:02]} c5 {[%emt 0:00:03]} 7. c3 {[%emt 0:00:02]} Nc6 {[%emt 0:00:09]} 8. O-O {[%emt 0:00:03]} cxd4 {[%emt 0:01:23]} 9. exd4 {[%emt 0:00:02]} Bg4 {[%emt 0:00:16]} 10. h3 {[%emt 0:00:09]} Be6 {[%emt 0:00:06]} 11. Qe2 {[%emt 0:00:10]} h6 {[%emt 0:01:07]} 12. Bh4 {[%emt 0:00:04]} Nh5 {[%emt 0:00:13]} 13. Bc2 {[%emt 0:00:18]} Qd7 {[%emt 0:00:22]} 14. Rae1 {[%emt 0:00:47]} Rac8 {[%emt 0:03:17]} 15. Bg3 {[%emt 0:02:57]} Nxg3 {[%emt 0:00:15]} 16. fxg3 {[%emt 0:00:02]} Nxd4 {[%emt 0:01:25]} 17. Nxd4 {[%emt 0:00:16]} Bxd4+ {[%emt 0:00:01]} 18. Kh2 {[%emt 0:00:08]} Bg7 {[%emt 0:01:38]} 19. Bxg6 {[%emt 0:00:19]} fxg6 {[%emt 0:00:46]} 20. Qxe6+ {[%emt 0:00:04]} Qxe6 {[%emt 0:00:03]} 21. Rxe6 {[%emt 0:00:23]} Rxf1 {[%emt 0:00:05]} 22. Nxf1 {[%emt 0:00:01]} Kf7 {[%emt 0:00:11]} 23. Re2 {[%emt 0:00:10]} e5 {[%emt 0:00:06]} 24. Ne3 {[%emt 0:00:06]} Ke6 {[%emt 0:00:02]} 25. Nc2 {[%emt 0:00:19]} a6 {[%emt 0:00:42]} 26. g4 {[%emt 0:00:12]} Rf8 {[%emt 0:00:08]} 27. Kg1 {[%emt 0:00:14]} Kd6 {[%emt 0:00:40]} 28. Rf2 {[%emt 0:00:03]} Rxf2 {[%emt 0:00:03]} 29. Kxf2 {[%emt 0:00:01]} Bf6 {[%emt 0:00:07]} 30. Ke2 {[%emt 0:00:03]} Bg5 {[%emt 0:00:09]} 31. Ne1 {[%emt 0:00:12]} a5 {[%emt 0:01:07]} 32. a4 {[%emt 0:00:13]} e4 {[%emt 0:01:00]} 33. Nc2 {[%emt 0:00:07]} Kc5 {[%emt 0:00:06]} 34. b3 {[%emt 0:00:52]} Bf6 {[%emt 0:00:34]} 35. Kd2 {[%emt 0:00:07]} Bg5+ {[%emt 0:00:02]} 36. Ke2 {[%emt 0:00:09]} Bf6 {[%emt 0:00:49]} 37. Kd2 {[%emt 0:00:06]} b5 {[%emt 0:00:01]} 38. b4+ {[%emt 0:00:09]} axb4 {[%emt 0:02:38]} 39. cxb4+ {[%emt 0:00:02]} Kc6 {[%emt 0:00:13]} 40. a5 {[%emt 0:00:05]} d4 {[%emt 0:00:01]} 41. Na3 {[%emt 0:01:56]} Bg5+ {[%emt 0:00:14]} 42. Kd1 {[%emt 0:00:46]} Bf4 {[%emt 0:00:46]} 43. Nc2 {[%emt 0:00:28]} Kd5 {[%emt 0:00:19]} 44. Na3 {[%emt 0:00:20]} Kc6 {[%emt 0:00:00]} 45. Nc2 {[%emt 0:00:09]} Be5 {[%emt 0:00:01]} 46. Kd2 {[%emt 0:00:10]} h5 {[%emt 0:00:34]} 47. gxh5 {[%emt 0:00:04]} gxh5 {[%emt 0:00:01]} 48. g4 {[%emt 0:00:00]} d3 {[%emt 0:00:18]} 49. Ne1 {[%emt 0:01:04]} Bf4+ {[%emt 0:00:06]} 50. Kd1 {[%emt 0:00:02]} hxg4 {[%emt 0:00:05]} 51. hxg4 {[%emt 0:00:02]} Bh6 {[%emt 0:00:15]} 52. Ng2 {[%emt 0:00:27]} Bg5 {[%emt 0:00:02]} 53. Ne1 {[%emt 0:00:59]} Kb7 {[%emt 0:00:10]} 54. Ng2 {[%emt 0:00:10]} e3 {[%emt 0:00:10]} 55. Ke1 {[%emt 0:00:15]} Kc6 {[%emt 0:00:09]} 56. Kf1 {[%emt 0:00:12]} Kd5 {[%emt 0:00:18]} 57. Ke1 {[%emt 0:00:13]} Kc6 {[%emt 0:00:20]} 58. Kd1 {[%emt 0:00:11]} Bh6 {[%emt 0:00:11]} 59. Ke1 {[%emt 0:00:51]} Kc7 {[%emt 0:00:00]} 60. Kd1 {[%emt 0:00:15]} Kb7 {[%emt 0:00:47]} 61. Nh4 {[%emt 0:01:46]} 1-0

[Event "African Games Rapid Open 2019"]
[Site "Casablanca"]
[Date "2019.08.26"]
[Round "4.16"]
[White "Eichab, Charles"]
[Black "Winston Gerald, Mansfield Thomas"]
[Result "1-0"]
[ECO "A10"]
[WhiteElo "2016"]
[BlackElo "1872"]
[Annotator "NA"]
[PlyCount "61"]
[EventDate "2019.08.26"]
[EventType "team-tourn"]
[EventCountry "MAR"]
[SourceTitle "playchess.com"]
[Source "ChessBase"]
[SourceQuality "1"]
[TimeControl "900+10"]

1. c4 {[%emt 0:00:00]} g6 {[%emt 0:00:00]} 2. g3 {[%emt 0:00:00]} Bg7 {[%emt 0:00:00]} 3. Bg2 {[%emt 0:00:00]} c6 {[%emt 0:00:00]} 4. Nf3 {[%emt 0:00:03]} Nf6 {[%emt 0:00:00]} 5. O-O {[%emt 0:00:02]} O-O {[%emt 0:00:00]} 6. Nc3 {[%emt 0:00:06]} d6 {[%emt 0:00:02]} 7. d4 {[%emt 0:00:24]} Qc7 {[%emt 0:00:08]} 8. b3 {[%emt 0:00:30]} Bf5 {[%emt 0:00:09]} 9. Bb2 {[%emt 0:00:08]} Ne4 {[%emt 0:00:07]} 10. Rc1 {[%emt 0:00:39]} h6 {[%emt 0:00:12]} 11. Nh4 {[%emt 0:00:20]} Nxc3 {[%emt 0:00:05]} 12. Bxc3 {[%emt 0:00:04]} Bg4 {[%emt 0:00:05]} 13. h3 {[%emt 0:00:10]} Bc8 {[%emt 0:00:06]} 14. e4 {[%emt 0:00:14]} e5 {[%emt 0:00:08]} 15. Qd2 {[%emt 0:01:48]} Nd7 {[%emt 0:00:51]} 16. Rcd1 {[%emt 0:01:09]} c5 {[%emt 0:01:28]} 17. dxe5 {[%emt 0:00:16]} dxe5 {[%emt 0:00:03]} 18. f4 {[%emt 0:05:16]} exf4 {[%emt 0:02:21]} 19. Bxg7 {[%emt 0:00:08]} Kxg7 {[%emt 0:00:03]} 20. gxf4 {[%emt 0:00:30]} Qd8 {[%emt 0:00:29]} 21. Qf2 Qe7 {[%emt 0:02:56]} 22. f5 {[%emt 0:02:51]} g5 {[%emt 0:03:37]} 23. Rxd7 {[%emt 0:01:19]} Qxd7 {[%emt 0:00:16]} 24. f6+ {[%emt 0:00:01]} Kh7 {[%emt 0:00:08]} 25. Nf5 {[%emt 0:00:20]} Qc7 {[%emt 0:02:58]} 26. h4 {[%emt 0:01:42]} Qe5 {[%emt 0:00:19]} 27. hxg5 {[%emt 0:00:15]} hxg5 {[%emt 0:00:04]} 28. Qf3 {[%emt 0:00:09]} Bxf5 29. Qh5+ {[%emt 0:00:07]} Kg8 {[%emt 0:02:46]} 30. Rxf5 {[%emt 0:00:02]} Qd4+ {[%emt 0:00:20]} 31. Kh2 1-0

[Event "African Games Rapid Open 2019"]
[Site "Casablanca"]
[Date "2019.08.26"]
[Round "4.17"]
[White "Hassan, Abderrahmane"]
[Black "Ebosse, Kingue Victor Patric"]
[Result "0-1"]
[ECO "A45"]
[WhiteElo "1786"]
[BlackElo "2055"]
[Annotator "NA"]
[PlyCount "96"]
[EventDate "2019.08.26"]
[EventType "team-tourn"]
[EventCountry "MAR"]
[SourceTitle "playchess.com"]
[Source "ChessBase"]
[SourceQuality "1"]
[TimeControl "900+10"]

1. d4 {[%emt 0:00:00]} Nf6 {[%emt 0:00:13]} 2. Nc3 {[%emt 0:00:00]} e6 {[%emt 0:00:10]} 3. e4 {[%emt 0:00:00]} Bb4 {[%emt 0:00:06]} 4. Bd3 {[%emt 0:00:06]} Nc6 {[%emt 0:00:09]} 5. a3 {[%emt 0:00:06]} Bxc3+ {[%emt 0:00:32]} 6. bxc3 {[%emt 0:00:02]} d6 {[%emt 0:00:01]} 7. Nf3 {[%emt 0:00:03]} e5 {[%emt 0:00:01]} 8. h3 {[%emt 0:00:40]} h6 {[%emt 0:00:12]} 9. O-O {[%emt 0:00:12]} O-O {[%emt 0:00:05]} 10. a4 {[%emt 0:00:39]} Re8 {[%emt 0:00:16]} 11. d5 {[%emt 0:00:04]} Ne7 {[%emt 0:00:24]} 12. Nd2 {[%emt 0:00:06]} Ng6 {[%emt 0:00:13]} 13. Nc4 {[%emt 0:01:01]} a5 {[%emt 0:02:13]} 14. Be3 {[%emt 0:02:06]} Qe7 {[%emt 0:00:37]} 15. Na3 {[%emt 0:01:24]} Bd7 {[%emt 0:00:29]} 16. Nb5 {[%emt 0:00:24]} c6 {[%emt 0:00:09]} 17. dxc6 {[%emt 0:00:08]} Bxc6 {[%emt 0:00:06]} 18. f3 {[%emt 0:00:05]} Nh5 {[%emt 0:00:22]} 19. Bc4 {[%emt 0:00:41]} Nhf4 {[%emt 0:01:24]} 20. Bxf4 {[%emt 0:03:52]} Nxf4 {[%emt 0:00:02]} 21. Kh2 {[%emt 0:00:36]} Rad8 {[%emt 0:06:53]} 22. g3 {[%emt 0:02:08]} Ne6 {[%emt 0:00:01]} 23. Bb3 {[%emt 0:00:15]} Nc5 {[%emt 0:00:17]} 24. Bd5 {[%emt 0:00:53]} Kh8 {[%emt 0:00:47]} 25. c4 {[%emt 0:00:08]} Rf8 {[%emt 0:00:32]} 26. Qd2 {[%emt 0:00:02]} f5 {[%emt 0:00:12]} 27. Nc3 {[%emt 0:02:27]} Rf6 {[%emt 0:00:33]} 28. exf5 {[%emt 0:00:31]} Rxf5 {[%emt 0:00:23]} 29. Be4 {[%emt 0:00:02]} Rf6 {[%emt 0:00:23]} 30. Nd5 {[%emt 0:00:02]} Bxd5 {[%emt 0:00:00]} 31. Qxd5 {[%emt 0:00:15]} Rdf8 {[%emt 0:00:31]} 32. Ra3 {[%emt 0:00:19]} Qc7 {[%emt 0:00:19]} 33. Rb1 {[%emt 0:00:13]} h5 {[%emt 0:00:37]} 34. h4 {[%emt 0:00:04]} Rg8 {[%emt 0:00:41]} 35. Kg2 {[%emt 0:00:12]} g6 {[%emt 0:00:24]} 36. Qd2 {[%emt 0:00:10]} Kg7 {[%emt 0:00:16]} 37. Qd5 {[%emt 0:00:09]} Rgf8 {[%emt 0:00:08]} 38. Rb5 {[%emt 0:00:12]} R8f7 {[%emt 0:00:08]} 39. Kh3 {[%emt 0:00:39]} Re7 {[%emt 0:00:08]} 40. Qd2 {[%emt 0:00:07]} Nxe4 41. fxe4 {[%emt 0:00:04]} Qxc4 {[%emt 0:00:13]} 42. Qd3 {[%emt 0:00:33]} Qe6+ {[%emt 0:00:05]} 43. Kg2 {[%emt 0:00:04]} Qg4 {[%emt 0:00:07]} 44. Ra1 {[%emt 0:00:22]} Ref7 {[%emt 0:00:03]} 45. Rxa5 {[%emt 0:00:03]} Rf2+ 46. Kg1 {[%emt 0:00:03]} R2f3 {[%emt 0:00:06]} 47. Qd1 {[%emt 0:00:13]} Rxg3+ {[%emt 0:00:03]} 48. Kh2 {[%emt 0:00:05]} Qh3# 0-1

[Event "African Games Rapid Open 2019"]
[Site "Casablanca"]
[Date "2019.08.26"]
[Round "4.18"]
[White "Sang, Ricky"]
[Black "Asante Debesai Zerabruk"]
[Result "1-0"]
[ECO "A45"]
[WhiteElo "1971"]
[BlackElo "1712"]
[Annotator "NA"]
[PlyCount "125"]
[EventDate "2019.08.26"]
[EventType "team-tourn"]
[EventCountry "MAR"]
[SourceTitle "playchess.com"]
[Source "ChessBase"]
[SourceQuality "1"]
[TimeControl "900+10"]

1. d4 {[%emt 0:00:00]} Nf6 {[%emt 0:00:00]} 2. Bf4 {[%emt 0:00:00]} e6 {[%emt 0:00:00]} 3. e3 {[%emt 0:00:00]} c5 {[%emt 0:00:04]} 4. c3 {[%emt 0:00:06]} Nc6 {[%emt 0:00:11]} 5. Nd2 {[%emt 0:00:16]} Be7 {[%emt 0:00:17]} 6. Bd3 {[%emt 0:00:26]} d5 {[%emt 0:00:03]} 7. Ngf3 {[%emt 0:00:21]} O-O {[%emt 0:00:04]} 8. Ne5 {[%emt 0:00:16]} Bd7 {[%emt 0:00:14]} 9. h4 {[%emt 0:00:27]} Nxe5 {[%emt 0:01:43]} 10. dxe5 {[%emt 0:00:04]} Ne8 {[%emt 0:00:10]} 11. g4 {[%emt 0:01:00]} f6 {[%emt 0:00:16]} 12. exf6 {[%emt 0:00:15]} Bxf6 {[%emt 0:00:52]} 13. g5 {[%emt 0:00:13]} Be7 {[%emt 0:00:18]} 14. Qc2 {[%emt 0:00:50]} Bd6 {[%emt 0:01:37]} 15. Bxh7+ {[%emt 0:00:30]} Kh8 {[%emt 0:00:01]} 16. Qg6 {[%emt 0:01:19]} Bxf4 {[%emt 0:01:58]} 17. exf4 Rxf4 {[%emt 0:00:10]} 18. Qh5 {[%emt 0:01:06]} d4 {[%emt 0:01:30]} 19. Bg6+ {[%emt 0:02:55]} Kg8 {[%emt 0:00:01]} 20. Qh7+ {[%emt 0:00:57]} Kf8 {[%emt 0:00:01]} 21. Qh8+ {[%emt 0:01:13]} Ke7 {[%emt 0:00:01]} 22. Bxe8 {[%emt 0:00:08]} Bxe8 {[%emt 0:00:54]} 23. Qxg7+ {[%emt 0:00:06]} Rf7 {[%emt 0:00:04]} 24. Qe5 {[%emt 0:00:15]} Rf5 {[%emt 0:00:06]} 25. Qg3 {[%emt 0:01:21]} Bc6 {[%emt 0:00:27]} 26. Rh2 {[%emt 0:00:15]} d3 {[%emt 0:00:33]} 27. O-O-O {[%emt 0:00:25]} Kf7 {[%emt 0:02:13]} 28. Nc4 {[%emt 0:00:36]} Kg7 {[%emt 0:00:32]} 29. Rxd3 {[%emt 0:00:24]} Qe7 {[%emt 0:00:15]} 30. Ne3 {[%emt 0:00:52]} Rf3 {[%emt 0:00:14]} 31. Qe5+ {[%emt 0:00:06]} Kh7 {[%emt 0:00:22]} 32. Rd6 {[%emt 0:00:21]} Re8 {[%emt 0:00:12]} 33. Ng4 {[%emt 0:00:12]} Rf5 {[%emt 0:01:01]} 34. Nf6+ {[%emt 0:00:17]} Kh8 {[%emt 0:00:03]} 35. Qg3 {[%emt 0:01:40]} Rf3 {[%emt 0:00:47]} 36. Qe5 {[%emt 0:00:55]} Rf5 {[%emt 0:00:01]} 37. Qe2 {[%emt 0:00:35]} Bf3 {[%emt 0:00:32]} 38. Qd2 {[%emt 0:00:08]} Rxf6 {[%emt 0:00:47]} 39. gxf6 {[%emt 0:00:03]} Qxf6 {[%emt 0:00:02]} 40. Qg5 {[%emt 0:00:14]} Qf8 {[%emt 0:00:37]} 41. Qe5+ {[%emt 0:00:10]} Kh7 {[%emt 0:00:02]} 42. Rd7+ {[%emt 0:00:04]} Re7 {[%emt 0:00:10]} 43. Rxe7+ Qxe7 {[%emt 0:00:01]} 44. Rh3 {[%emt 0:00:09]} Bg4 {[%emt 0:00:07]} 45. Rg3 {[%emt 0:00:09]} Bf5 {[%emt 0:00:21]} 46. Qf4 {[%emt 0:00:11]} Qf7 {[%emt 0:00:39]} 47. Qg5 {[%emt 0:00:06]} b6 {[%emt 0:01:14]} 48. h5 {[%emt 0:00:03]} Be4 {[%emt 0:00:26]} 49. h6 {[%emt 0:00:05]} Bg6 {[%emt 0:00:07]} 50. Qe5 {[%emt 0:00:08]} a6 {[%emt 0:00:28]} 51. Re3 {[%emt 0:00:23]} Bf5 {[%emt 0:00:07]} 52. Rg3 {[%emt 0:00:16]} Bg6 {[%emt 0:00:01]} 53. f4 {[%emt 0:00:09]} Qf5 {[%emt 0:00:13]} 54. Qxf5 {[%emt 0:00:06]} Bxf5 {[%emt 0:00:03]} 55. Rg7+ {[%emt 0:00:06]} Kxh6 {[%emt 0:00:02]} 56. Rb7 {[%emt 0:00:06]} Kh5 {[%emt 0:00:18]} 57. Kd2 {[%emt 0:00:02]} b5 {[%emt 0:00:14]} 58. Rb6 {[%emt 0:00:04]} Kg4 {[%emt 0:00:04]} 59. Ke3 {[%emt 0:00:01]} b4 {[%emt 0:00:41]} 60. cxb4 {[%emt 0:00:06]} cxb4 {[%emt 0:00:02]} 61. Rxb4 {[%emt 0:00:03]} Kh5 {[%emt 0:00:09]} 62. Rb6 {[%emt 0:00:03]} a5 {[%emt 0:00:03]} 63. Ra6 {[%emt 0:00:03]} 1-0

[Event "African Games Rapid Open 2019"]
[Site "Casablanca"]
[Date "2019.08.26"]
[Round "4.19"]
[White "Kamara, Ansumana"]
[Black "Kourakoumba, Florent"]
[Result "1/2-1/2"]
[ECO "C00"]
[WhiteElo "1928"]
[BlackElo "1677"]
[Annotator "NA"]
[PlyCount "135"]
[EventDate "2019.08.26"]
[EventType "team-tourn"]
[EventCountry "MAR"]
[SourceTitle "playchess.com"]
[Source "ChessBase"]
[SourceQuality "1"]
[TimeControl "900+10"]

1. e4 {[%emt 0:00:00]} e6 {[%emt 0:00:00]} 2. d4 {[%emt 0:00:00]} d6 {[%emt 0:00:00]} 3. c4 {[%emt 0:00:03]} Be7 {[%emt 0:00:01]} 4. f4 {[%emt 0:00:06]} Nf6 {[%emt 0:00:11]} 5. Nc3 {[%emt 0:00:02]} O-O {[%emt 0:00:03]} 6. Nf3 {[%emt 0:00:03]} c6 {[%emt 0:00:08]} 7. Bd3 {[%emt 0:00:02]} Nbd7 {[%emt 0:00:06]} 8. O-O {[%emt 0:00:04]} e5 {[%emt 0:00:04]} 9. fxe5 {[%emt 0:00:06]} dxe5 {[%emt 0:00:02]} 10. d5 {[%emt 0:00:04]} Nc5 {[%emt 0:00:08]} 11. Bc2 {[%emt 0:00:06]} Nfd7 {[%emt 0:00:05]} 12. Be3 {[%emt 0:00:46]} f6 {[%emt 0:00:10]} 13. d6 {[%emt 0:00:11]} Re8 {[%emt 0:00:37]} 14. dxe7 {[%emt 0:00:03]} Qxe7 {[%emt 0:00:01]} 15. Nh4 {[%emt 0:00:15]} g6 {[%emt 0:00:04]} 16. Qf3 {[%emt 0:00:14]} Ne6 {[%emt 0:00:06]} 17. g3 {[%emt 0:00:27]} Rf8 {[%emt 0:00:01]} 18. Bh6 {[%emt 0:00:28]} Rf7 {[%emt 0:00:00]} 19. Be3 {[%emt 0:00:25]} b6 {[%emt 0:00:04]} 20. Qg4 {[%emt 0:00:19]} Nef8 {[%emt 0:00:12]} 21. Nf5 {[%emt 0:00:08]} Qe6 {[%emt 0:00:29]} 22. Nh6+ {[%emt 0:00:05]} Kg7 {[%emt 0:00:05]} 23. Qxe6 {[%emt 0:00:04]} Nxe6 {[%emt 0:00:05]} 24. Nxf7 {[%emt 0:00:03]} Kxf7 {[%emt 0:00:01]} 25. Rad1 {[%emt 0:00:13]} c5 {[%emt 0:00:27]} 26. Nd5 {[%emt 0:00:17]} Bb7 {[%emt 0:00:22]} 27. Nxf6 {[%emt 0:00:25]} Ndf8 {[%emt 0:00:50]} 28. Nxh7+ Kg7 29. Nxf8 {[%emt 0:00:15]} Nxf8 {[%emt 0:00:04]} 30. Bg5 {[%emt 0:00:15]} Re8 {[%emt 0:00:17]} 31. Rd8 {[%emt 0:00:12]} Rxd8 {[%emt 0:00:09]} 32. Bxd8 {[%emt 0:00:03]} Ne6 {[%emt 0:00:15]} 33. Bf6+ {[%emt 0:00:06]} Kh6 {[%emt 0:00:06]} 34. Bxe5 {[%emt 0:00:03]} Nd4 {[%emt 0:00:02]} 35. Bxd4 {[%emt 0:00:03]} cxd4 {[%emt 0:00:01]} 36. Rd1 {[%emt 0:00:02]} Kh5 37. Rxd4 {[%emt 0:00:02]} g5 {[%emt 0:00:32]} 38. e5 {[%emt 0:00:03]} Bc6 {[%emt 0:00:13]} 39. e6 {[%emt 0:00:08]} Kh6 {[%emt 0:00:12]} 40. Rd6 {[%emt 0:00:15]} Be8 {[%emt 0:00:06]} 41. Rd7 {[%emt 0:00:24]} g4 {[%emt 0:01:11]} 42. Kf2 {[%emt 0:00:13]} Kg5 {[%emt 0:00:15]} 43. Rxa7 {[%emt 0:00:06]} Kf6 {[%emt 0:00:12]} 44. e7 {[%emt 0:00:05]} Ke6 {[%emt 0:01:48]} 45. Bf5+ {[%emt 0:00:07]} Kxf5 {[%emt 0:00:07]} 46. Ke3 {[%emt 0:00:04]} Ke6 {[%emt 0:00:33]} 47. Kf4 {[%emt 0:00:03]} Bd7 {[%emt 0:00:03]} 48. Kxg4 {[%emt 0:00:06]} Kxe7+ {[%emt 0:00:01]} 49. Kg5 {[%emt 0:00:03]} Kd6 {[%emt 0:00:04]} 50. Rxd7+ {[%emt 0:00:03]} Kxd7 {[%emt 0:00:01]} 51. h4 {[%emt 0:00:02]} Kd6 {[%emt 0:00:01]} 52. h5 {[%emt 0:00:03]} Kc5 {[%emt 0:00:01]} 53. h6 {[%emt 0:00:05]} Kxc4 {[%emt 0:00:01]} 54. h7 {[%emt 0:00:02]} b5 {[%emt 0:02:02]} 55. h8=Q {[%emt 0:00:05]} b4 {[%emt 0:00:08]} 56. Kf4 {[%emt 0:00:10]} Kd3 {[%emt 0:00:22]} 57. Qe5 {[%emt 0:00:13]} Kc2 {[%emt 0:01:27]} 58. g4 {[%emt 0:00:09]} Kb1 {[%emt 0:00:05]} 59. a4 {[%emt 0:00:09]} bxa3 {[%emt 0:00:09]} 60. bxa3 {[%emt 0:00:02]} Ka2 {[%emt 0:00:05]} 61. a4 {[%emt 0:00:03]} Ka3 {[%emt 0:00:04]} 62. a5 {[%emt 0:00:02]} Kb4 {[%emt 0:04:46]} 63. a6 {[%emt 0:00:03]} Ka4 {[%emt 0:00:05]} 64. Qc5 {[%emt 0:00:21]} Kb3 {[%emt 0:01:14]} 65. a7 {[%emt 0:00:06]} Kb2 {[%emt 0:00:10]} 66. a8=R {[%emt 0:00:07]} Kb3 {[%emt 0:00:27]} 67. Rb8+ {[%emt 0:00:03]} Ka4 {[%emt 0:00:08]} 68. Qa7# {[%emt 0:00:01]} 1/2-1/2

[Event "African Games Rapid Open 2019"]
[Site "Casablanca"]
[Date "2019.08.26"]
[Round "4.22"]
[White "Gole, Habtamu Ashenafi"]
[Black "Yahi, Mohamed Salem"]
[Result "1-0"]
[ECO "A53"]
[WhiteElo "2046"]
[BlackElo "1928"]
[Annotator "NA"]
[PlyCount "79"]
[EventDate "2019.08.26"]
[EventType "team-tourn"]
[EventCountry "MAR"]
[SourceTitle "playchess.com"]
[Source "ChessBase"]
[SourceQuality "1"]
[TimeControl "900+10"]

1. d4 {[%emt 0:00:00]} d6 {[%emt 0:00:00]} 2. c4 {[%emt 0:00:00]} Nf6 {[%emt 0:00:00]} 3. Nc3 {[%emt 0:00:00]} g6 {[%emt 0:00:02]} 4. e4 {[%emt 0:00:00]} Bg7 {[%emt 0:00:04]} 5. Be3 {[%emt 0:00:00]} Nc6 {[%emt 0:00:36]} 6. f3 {[%emt 0:00:02]} e5 {[%emt 0:00:13]} 7. d5 {[%emt 0:00:01]} Ne7 {[%emt 0:00:04]} 8. Qd2 {[%emt 0:00:02]} a6 {[%emt 0:01:45]} 9. Nge2 {[%emt 0:00:02]} c6 {[%emt 0:00:08]} 10. Ng3 {[%emt 0:00:10]} cxd5 {[%emt 0:00:06]} 11. cxd5 {[%emt 0:00:01]} b5 {[%emt 0:00:21]} 12. h4 {[%emt 0:00:25]} h5 {[%emt 0:00:10]} 13. Bd3 {[%emt 0:00:11]} Bb7 {[%emt 0:00:34]} 14. Qf2 {[%emt 0:00:01]} Nd7 {[%emt 0:00:16]} 15. b4 {[%emt 0:00:05]} Nc8 {[%emt 0:00:56]} 16. Bg5 {[%emt 0:00:09]} Qb6 {[%emt 0:00:49]} 17. Be3 {[%emt 0:00:01]} Qd8 {[%emt 0:00:06]} 18. a4 {[%emt 0:00:01]} O-O {[%emt 0:01:42]} 19. axb5 {[%emt 0:00:03]} axb5 {[%emt 0:00:04]} 20. Rxa8 {[%emt 0:00:01]} Bxa8 {[%emt 0:00:03]} 21. Nxb5 {[%emt 0:00:09]} Nf6 {[%emt 0:01:07]} 22. O-O {[%emt 0:00:11]} Qd7 {[%emt 0:00:13]} 23. Rc1 {[%emt 0:00:08]} Qd8 {[%emt 0:01:52]} 24. Qa2 {[%emt 0:00:10]} Nb6 {[%emt 0:02:47]} 25. Nc7 {[%emt 0:00:11]} Bb7 {[%emt 0:00:26]} 26. Bxb6 {[%emt 0:00:06]} Nd7 {[%emt 0:00:13]} 27. Bf2 {[%emt 0:00:05]} Qxh4 {[%emt 0:00:13]} 28. Nf5 {[%emt 0:00:21]} Qf6 {[%emt 0:00:17]} 29. Nxg7 {[%emt 0:00:23]} Kxg7 {[%emt 0:00:03]} 30. Qa4 {[%emt 0:00:25]} Bc8 {[%emt 0:00:45]} 31. Bb5 {[%emt 0:00:11]} Qf4 {[%emt 0:00:25]} 32. Rd1 {[%emt 0:00:29]} Nf6 {[%emt 0:00:03]} 33. Qa7 {[%emt 0:00:28]} h4 {[%emt 0:00:20]} 34. Qe3 {[%emt 0:00:07]} Qxe3 {[%emt 0:01:21]} 35. Bxe3 {[%emt 0:00:02]} Nh5 {[%emt 0:00:02]} 36. Ne8+ {[%emt 0:00:09]} Kh7 {[%emt 0:00:18]} 37. Rc1 {[%emt 0:00:06]} Ba6 {[%emt 0:00:16]} 38. Bc6 {[%emt 0:00:28]} Ng3 {[%emt 0:00:10]} 39. Ra1 {[%emt 0:00:25]} Bd3 {[%emt 0:01:09]} 40. Ra7 {[%emt 0:00:05]} 1-0